Cogmind - Beta 16.1 @@@ ROGUE MODE // 2026.04.18 @ 18:16:42 Player: H3-MLN Result: Destroyed by YW-C85(E) with Overtuned Barrage Gun Performance ------------- Evolutions (0) 0 Regions Visited (3) 600 Robots Destroyed (31) 155 Value Destroyed (647) 647 Prototype IDs (20) 400 Alien Tech Used (0) 0 Bonus (58) 58 TOTAL SCORE: 1860 Bonus ------- Follower Combat Kills 96 Registered with UFD 300 Friendly Fire -338 Cogmind --------- Core Integrity 0/250 Matter 300/300 Energy 100/100 System Corruption 0% Temperature Cool (2) Movement Flying (40) Location -8/Scraptown Parts ------- > --- POWER (1) -------- (None) > --- PROPULSION (2) --- Flight Unit > --- UTILITY (2) ------ Mapping Drone Bay (0/3) > --- WEAPON (2) ------- (None) > --- INVENTORY (5) ---- High-capacity Matter Pod (144) Experimental Sensor Array Authchip [Weapon] CPS Tube (2) Ripper Peak State ------------ > --- POWER ------------ Subdweller Power Source > --- PROPULSION ------- Wheel Subdweller Monowheel > --- UTILITY ---------- Humpback > --- WEAPON ----------- Subdweller Beam Cannon Ripper > --- INVENTORY -------- Light Ion Engine Subdweller Power Source Cargo Legs Wheel Wheel Wheel High-capacity Matter Pod High-capacity Matter Pod Scrap Shield Hacking Suite Powered Cannon Grenade Launcher 1B-0RG's Assimilator SUBCON Basin [Rating: 42] Favorites ----------- Power Subdweller Power Source Engine Subdweller Power Source Propulsion Wheel Treads Light Treads Wheel Wheel Flight Unit Flight Unit Utility Large Storage Unit Device Structural Scanner Storage Large Storage Unit Weapon Subdweller Beam Cannon Energy Gun Salvaging Laser Energy Cannon Subdweller Beam Cannon Ballistic Gun Assault Rifle Ballistic Cannon Battle Cannon Launcher Grenade Launcher Special Weapon CPS Tube Slashing Weapon Ripper Build | -11 -10 -10 -8 ------- Run | Yrd Mat Sub Scr Slots Evolved . | . . . . Power . | . . . . Propulsion . | . . . . Utility . | . . . . Weapon . | . . . . Parts Attached 53 | 9 9 26 9 Power 7 | 1 1 4 1 Engine 7 | 1 1 4 1 Core . | . . . . Reactor . | . . . . Propulsion 18 | 4 3 10 1 Treads 3 | . 1 2 . Leg . | . . . . Wheel 14 | 4 2 8 . Hover . | . . . . Flight 1 | . . . 1 Utility 13 | 2 2 4 5 Device 8 | 1 . 3 4 Storage 5 | 1 2 1 1 Processor . | . . . . Hackware . | . . . . Protection . | . . . . Artifact . | . . . . Weapon 15 | 2 3 8 2 Energy Gun 2 | 1 1 . . Energy Cannon 2 | . . 2 . Ballistic Gun 4 | 1 1 2 . Ballistic Cannon 2 | . 1 1 . Launcher 1 | . . 1 . Special Weapon 3 | . . 1 2 Impact Weapon . | . . . . Slashing Weapon 1 | . . 1 . Piercing Weapon . | . . . . Special Melee Weapon . | . . . . Unidentified Prototypes . | . . . . Parts Lost 7 | . 1 5 1 Power 1 | . 1 . . Propulsion 3 | . . 3 . Utility . | . . . . Weapon 3 | . . 2 1 Highest Loss Streak 3 | . 1 3 1 To Critical Strikes . | . . . . Average Backups 10 | 4 12 13 7 Power . | . . 1 . Propulsion 2 | 2 3 3 1 Utility 4 | . 4 5 3 Weapon 2 | 1 3 3 . Tool/Special . | . . . . Unused Backups 31 | 1 5 3 22 Power 2 | . . . 2 Propulsion 3 | 1 . . 2 Utility 20 | . 3 2 15 Weapon 4 | . 2 1 1 Tool/Special 2 | . . . 2 Average Slot Usage (%) 92 | . 99 98 82 Engine 13 | . 14 14 12 Treads 6 | . . 12 . Wheel 20 | . 27 15 25 Device 11 | . 14 12 8 Storage 11 | . 14 14 8 Energy Gun 3 | . 9 5 . Energy Cannon 10 | . . 13 10 Ballistic Gun 1 | . 13 . . Ballistic Cannon 1 | . 4 2 . Slashing Weapon 8 | . . 5 13 Peak Build Rating 42 | 8 9 42 42 Average Rating 18 | 5 8 16 24 On Entrance 14 | . 8 9 42 Avg Prop Armor Cover (%) 14 | . . 14 . Naked Turns . | . . . . Heaviest Build 216 | 13 29 216 216 Greatest Support 40 | 26 20 40 30 Greatest Overweight (x) 21 | 2 1 21 10 Average Overweight (x) 2 | . . 2 2 Largest Inventory Capacity 35 | 8 15 35 35 Average Capacity 17 | 7 12 17 19 Most Carried 35 | 8 15 35 35 Average Carried 15 | 4 12 16 15 Final Capacity 35 | 8 15 35 5 Final Carried 35 | 8 15 35 5 Class Distribution -------------------- 76% | Mutant 19% | Hauler-Mutant Dominant Class ---------------- Mutant | -10/Materials Mutant | -10/Subcaves Mutant | -8/Scraptown Resources | -11 -10 -10 -8 ----------- Run | Yrd Mat Sub Scr Matter Collected 2804 | 300 711 589 1204 Remotely . | . . . . Salvage Created 1108 | 110 552 429 17 Parts 90 | 12 39 36 3 Haulers Intercepted . | . . . . Recyclers Shooed 4 | 1 3 . . Parts Field Recycled . | . . . . Retrieved Matter . | . . . . Parts Self-Destructed 10 | . . 10 . Prevented . | . . . . Parts Restored . | . . . . Kills | -11 -10 -10 -8 ------- Run | Yrd Mat Sub Scr Combat Hostiles Destroyed 13 | . 1 12 . Guns 1 | . 1 . . Cannons 11 | . . 11 . AOE 1 | . . 1 . Classes Destroyed 10 | 2 5 2 1 Builder 4 | . 4 . . Tunneler 5 | 3 2 . . Recycler 5 | 1 4 . . Operator 1 | . 1 . . Watcher 2 | . 2 . . Grunt 1 | . 1 . . Artisan 1 | . . 1 . Subdweller 12 | . . 12 . Federalist 1 | . 1 . . Tinkerer 1 | . . . 1 Best Kill Streak 3 | 2 3 3 . Combat Bots Only 3 | . 1 3 . Max Kills in Single Turn 1 | 1 1 1 1 Gunslinging . | . . . . Exploded 1 | . . 1 . Melee . | . . . . Uniques/NPCs Destroyed . | . . . . Combat | -11 -10 -10 -8 -------- Run | Yrd Mat Sub Scr Hostile Shots Fired 104 | . 10 63 31 Missed 41 | . 2 20 19 Hits 63 | . 8 43 12 Melee 2 | . . . 2 Projectile 61 | . 8 43 10 Damage Taken 1223 | . 139 881 203 Core 261 | . 27 135 99 Absorbed by Shields . | . . . . Regen/Repaired (Parts) 49 | . 49 . . Core Remaining (%) 100 | 100 . . . Volleys Fired 130 | 10 43 76 1 Largest 2 | 2 2 2 1 Hottest 113 | 70 70 113 . Shots Fired 201 | 20 86 94 1 Gun 113 | 20 78 15 . Cannon 82 | . 8 74 . Launcher 1 | . . 1 . Special 5 | . . 4 1 Kinetic 111 | 10 54 47 . Thermal 88 | 10 32 46 . Explosive 1 | . . 1 . Electromagnetic . | . . . . Robot Hit Streak 12 | 9 10 12 3 Robot Miss Streak 9 | 2 9 4 . Penetration Max . | . . . . Secondary Targets . | . . . . Shots Hit Robots 104 | 14 45 43 2 Core Hits 46 | 4 23 18 1 Critical Kills . | . . . . Critical Parts Destroyed . | . . . . Critical Strikes 3 | 2 . 1 . Burn 2 | 2 . . . Blast 1 | . . 1 . Melee Attacks 34 | . . 32 2 Impact . | . . . . Slashing 34 | . . 32 2 Piercing . | . . . . Sneak Attacks 2 | . . 1 1 Combat Hostiles . | . . . . Follow-up Attacks . | . . . . Damage Inflicted 1947 | 177 541 1158 71 Guns 701 | 177 504 20 . Cannons 1004 | . 37 967 . Explosions 88 | . . 88 . Melee 154 | . . 83 71 Ramming . | . . . . Kinetic 744 | 77 377 290 . Thermal 961 | 100 164 697 . Explosive 88 | . . 88 . Electromagnetic . | . . . . Impact . | . . . . Slashing 154 | . . 83 71 Piercing . | . . . . Highest Corruption 1 | . 1 1 . Average Corruption 1 | . 1 1 . Corruption Purged 1 | . . 1 . Corruption Blocked . | . . . . Effects 10 | . 2 8 . Message Errors 1 | . . 1 . Matter Fused 7 | . 2 5 . Data Loss (minor) 1 | . . 1 . Misfires 1 | . . 1 . Overload Shots . | . . . . Overflow Damage . | . . . . Projectiles . | . . . . Explosions . | . . . . Melee . | . . . . Knockbacks 6 | . 1 5 . Impact . | . . . . Kinetic 5 | . 1 4 . Secondary 1 | . . 1 . Self-Inflicted Damage . | . . . . Shots . | . . . . Rammed . | . . . . Targets Rammed . | . . . . Kicked . | . . . . Crushed . | . . . . Highest Temperature 40 | 27 28 40 . Average Temperature 12 | 12 10 19 . Received Heat Transfer 246 | . 18 213 15 Siege Activations . | . . . . Martial Activations . | . . . . Shielding Activations . | . . . . Robots Disrupted . | . . . . Combat Hostiles . | . . . . Robots Corrupted . | . . . . Combat Hostiles . | . . . . Parts Fried . | . . . . Impact Corruptions . | . . . . Robots Melted . | . . . . Combat Hostiles . | . . . . Parts Melted 6 | 3 . 3 . Heat Transferred 1856 | 444 450 962 . Parts Sabotaged . | . . . . Parts Stolen . | . . . . Parts Stripped . | . . . . Power Chain Reactions . | . . . . Alert | -11 -10 -10 -8 ------- Run | Yrd Mat Sub Scr Maximum Alert Level . | . . . . Low Security (%) 100 | 100 100 . . Level 1 . | . . . . Level 2 . | . . . . Level 3 . | . . . . Level 4 . | . . . . Level 5 . | . . . . High Security . | . . . . Max Security . | . . . . Peak Influence 30 | 10 30 . . Initial . | . . . . Average 1 | 2 1 . . Influence Increases 141 | 20 121 . . Destroy 0b10 Robot/C 20 | . 20 . . Destroy 0b10 Robot/NC 85 | 20 65 . . Destroy Leader 14 | . 14 . . Successful Hack 7 | . 7 . . Partial Spotted 15 | . 15 . . Influence Decreases 141 | 20 120 1 . Entered New Map 1 | . . 1 . Time Decay 133 | 20 113 . . Lost Part 7 | . 7 . . Squads Dispatched 1 | . 1 . . Investigation . | . . . . Extermination . | . . . . Reinforcement 1 | . 1 . . Assault . | . . . . Garrison . | . . . . Intercept . | . . . . Searches Triggered . | . . . . Construction Impeded . | . . . . Haulers Reinforced . | . . . . Active Scanning Responses . | . . . . Cargo Convoy Interrupts . | . . . . Stealth | -11 -10 -10 -8 --------- Run | Yrd Mat Sub Scr Distress Signals 1 | . 1 . . Communications Jammed . | . . . . Distress Signals . | . . . . Times Spotted 52 | . 16 16 20 Peak Tracking Total 31 | . 3 3 31 Tactical Retreats . | . . . . Traps | -11 -10 -10 -8 ------- Run | Yrd Mat Sub Scr Traps Triggered 1 | . 1 . . Indirectly . | . . . . Trap Hack Attempts . | . . . . Triggered . | . . . . Disarmed . | . . . . Reprogrammed . | . . . . Reused . | . . . . Traps Extracted . | . . . . Installed . | . . . . Triggered . | . . . . Machines | -11 -10 -10 -8 ---------- Run | Yrd Mat Sub Scr Machines Disabled 5 | . 1 1 3 Max in Single Turn 1 | . 1 1 1 Machines Repaired . | . . . . Machines Dismantled . | . . . . Machines Sabotaged . | . . . . Overloaded Fab Kills . | . . . . Hacking | -11 -10 -10 -8 --------- Run | Yrd Mat Sub Scr Machines Accessed 12 | . 4 4 4 Terminals 3 | . 3 . . Fabricators . | . . . . Repair Stations 1 | . 1 . . Recycling Units . | . . . . Scanalyzers . | . . . . Garrison Access . | . . . . Total Hacks 48 | . 8 7 33 Successful 44 | . 4 7 33 Failed 4 | . 4 . . Catastrophic 1 | . 1 . . Database Lockouts . | . . . . Manual 3 | . 3 . . Terminals 6 | . 6 . . Fabricators . | . . . . Repair Stations 2 | . 2 . . Recycling Units . | . . . . Scanalyzers . | . . . . Garrison Access . | . . . . Terminal Hacks 42 | . 2 7 33 Record 37 | . . 4 33 Part Schematic 1 | . 1 . . Robot Analysis 1 | . 1 . . Open Door 1 | . . 1 . Proto ID Catalog 1 | . . 1 . Release Object 1 | . . 1 . Fabricator Hacks . | . . . . Repair Station Hacks 2 | . 2 . . Scan Component 1 | . 1 . . Repair 1 | . 1 . . Recycling Unit Hacks . | . . . . Scanalyzer . | . . . . Garrison Access Hacks . | . . . . Unauthorized Hacks . | . . . . Terminals . | . . . . Fabricators . | . . . . Repair Stations . | . . . . Recycling Units . | . . . . Scanalyzers . | . . . . Garrison Access . | . . . . Data Cores Recovered . | . . . . Used . | . . . . Hacking Detections 4 | . 4 . . Full Trace Events 1 | . 1 . . Feedback Events . | . . . . Feedback Blocked . | . . . . Robot Schematics Acquired . | . . . . Robots Built . | . . . . Authchips . | . . . . Time . | . . . . Total Robot Build Rating . | . . . . Part Schematics Acquired 2 | . 1 . 1 Parts Built . | . . . . Authchips . | . . . . Time . | . . . . Total Part Build Rating . | . . . . Part Studies Acquired . | . . . . Parts Repaired 1 | . 1 . . Time 26 | . 26 . . Parts Recycled . | . . . . Recycled Matter . | . . . . Retrieved Matter . | . . . . Retrieved Components . | . . . . Parts Scanalyzed . | . . . . Part Schematics Acquired . | . . . . Parts Damaged . | . . . . Bothacking | -11 -10 -10 -8 ------------ Run | Yrd Mat Sub Scr Used RIF Installer . | . . . . Robots Hacked . | . . . . Non-combat . | . . . . Combat . | . . . . Robot Hacks Applied . | . . . . Relay Couplers Released . | . . . . Fabnet Peak Effective % . | . . . . Robots Rewired . | . . . . Allies Hacked . | . . . . Hacks Repelled . | . . . . Allies | -11 -10 -10 -8 -------- Run | Yrd Mat Sub Scr Total Allies 6 | . . . 6 Largest Group 6 | . . . 6 Highest-Rated Group 327 | . . . 327 Highest-Rated Ally 89 | . . . 89 Total Orders 7 | . . . 7 STAY 6 | . . . 6 FOLLOW 1 | . . . 1 Ally Attacks 39 | . . . 39 Total Damage 987 | . . . 987 Kills 7 | . . . 7 Allies Corrupted . | . . . . Allies Melted . | . . . . Intel | -11 -10 -10 -8 ------- Run | Yrd Mat Sub Scr Active Infowar (turns) 9767 | 17 1206 6511 2033 Terrain 3121 | . . 3121 . Structural 5200 | . . 3167 2033 Seismic 1446 | 17 1206 223 . Robot Analysis Total 1 | . 1 . . Derelict Logs Recovered 4 | . . 1 3 Drone Launches 3 | . . . 3 Drone Recoveries . | . . . . Exploration | -11 -10 -10 -8 ------------- Run | Yrd Mat Sub Scr Turns Passed 14071 | 115 1206 7446 5304 Spaces Moved 7972 | 76 612 2814 4470 Core 52 | 13 . 11 28 Treads 6 | . . 6 . Legs . | . . . . Wheels 7429 | 63 612 2797 3957 Hover . | . . . . Flight 485 | . . . 485 Fastest Speed 40 | 50 80 95 40 Average Speed 116 | 84 84 133 110 Slowest Speed 650 | 150 95 650 230 Overloaded Moves . | . . . . Propulsion Burnouts . | . . . . Robots Hopped 2 | . . . 2 Potential Cave-ins . | . . . . Cave-ins Triggered . | . . . . Exploration Rate (%) 66 | 3 80 90 92 Regions Visited 3 Branch Regions 2 Pre-discovered Areas 5 | . . . 5 Known Exits Taken . | . . . . Unknown Exits Taken 3 | 1 1 1 . Scrap Searched 15 | . . 5 10 Spaces Dug 9 | . . 9 . Terrain Destroyed 16 | . . 16 . Melee 6 | . . 6 . Projectile 8 | . . 8 . AOE 2 | . . 2 . Terrain Rammed . | . . . . Walls Destroyed . | . . . . Machines Disabled . | . . . . Actions | -11 -10 -10 -8 --------- Run | Yrd Mat Sub Scr Total 12536 | 104 1233 6368 4831 Wait 4160 | . 537 3351 272 Move 7965 | 75 611 2813 4466 Hop 2 | . . . 2 Pick Up 90 | 8 17 29 36 Fast Attach 23 | 7 3 7 6 Attach 14 | . 1 7 6 Detach 1 | . . . 1 Swap 32 | 2 7 23 . Drop 85 | 2 14 30 39 Fire 130 | 10 43 76 1 Melee 34 | . . 32 2 Ram . | . . . . Kick . | . . . . Crush . | . . . . Escape Stasis . | . . . . Rewire . | . . . . Trap . | . . . . Miscellaneous . | . . . . Route ------- -11/Scrapyard -10/Materials (discovered 4 exits: [*Mat x2] / [*Min] / *Sub) -10/Subcaves (discovered 4 exits: [*Mat x2] / [Rec] / *Scr) -8/Scraptown (discovered 2 exits: [*Fac x2]) History --------- Turn | Location | Event 24 | -11/Scrapyard | Discovered new exit (range 15) 116 | -11/Scrapyard | Entered Materials 117 | -10/Materials | Met a group of wandering Federalists 139 | -10/Materials | Discovered new exit (range 14) 187 | -10/Materials | Discovered new exit (range 7) 219 | -10/Materials | Discovered new exit (range 16) 315 | -10/Materials | Build established: Mutant 355 | -10/Materials | Discovered new exit (range 10) 440 | -10/Materials | Repaired Assault Rifle 1322 | -10/Materials | Entered Subcaves 1323 | -10/Subcaves | Continued accompanying wandering Federalists (5) 1351 | -10/Subcaves | Shifting Twisted Machinery released Sub. Machine Gun 1353 | -10/Subcaves | Shifting Twisted Machinery released Sub. Beam Cannon 1392 | -10/Subcaves | Learned Materials stockpile data 1395 | -10/Subcaves | Discovered new exit (range 12) 1585 | -10/Subcaves | Wandering Federalist uncovered a shortcut to Scraptown 1618 | -10/Subcaves | Ambushed by Subdwellers from Twisted Machinery 1619 | -10/Subcaves | A swath of the cavern ceiling suddenly collapsed 1777 | -10/Subcaves | Discovered new exit (range 5) 2005 | -10/Subcaves | A Subdweller sparked back to life 2005 | -10/Subcaves | A Subdweller sparked back to life 2043 | -10/Subcaves | Found Prototype Energy Cannon 2989 | -10/Subcaves | Visited 4L-MR0's lab 2993 | -10/Subcaves | Identified Powered Cannon 3719 | -10/Subcaves | Core integrity fell below 50% 3755 | -10/Subcaves | Lost 3 parts (2n1w) 4061 | -10/Subcaves | Visited Clippyterm 4065 | -10/Subcaves | Learned Factory garrison access intel 4108 | -10/Subcaves | A swath of the cavern ceiling suddenly collapsed 4163 | -10/Subcaves | Shifting Twisted Machinery released Sub. Power Source 4166 | -10/Subcaves | Shifting Twisted Machinery released Sub. Beam Cannon 5577 | -10/Subcaves | Discovered new exit (range 12) 8189 | -10/Subcaves | Build established: Hauler-Mutant 8201 | -10/Subcaves | Found SUBCON Basin 8432 | -10/Subcaves | Found Prototype Special Melee Weapon 8438 | -10/Subcaves | Found Cargo Legs 8768 | -10/Subcaves | Entered Scraptown 8892 | -8/Scraptown | Visited Fellowship of the Rings 8947 | -8/Scraptown | Visited Cyclists 8967 | -8/Scraptown | Visited Symbiants 9010 | -8/Scraptown | Visited Spacefarers 9032 | -8/Scraptown | Visited Bundlers 9180 | -8/Scraptown | Scanned Subdweller tech in exchange for log data 9184 | -8/Scraptown | Learned Factory stockpile data 9186 | -8/Scraptown | Learned location of Testing (-3) 9187 | -8/Scraptown | Learned location of Armory (-4) 9203 | -8/Scraptown | Discovered new exit (range 11) 9277 | -8/Scraptown | Heard Great Nut preacher, LISTEN AND RECITE! 9746 | -8/Scraptown | Visited IN-MT5's Study 9885 | -8/Scraptown | Visited UFD Registry 9885 | -8/Scraptown | Registered with UFD as "Pulsebot" 9946 | -8/Scraptown | Visited Infowarlord's Domain 9971 | -8/Scraptown | Visited Junk Repository 10043 | -8/Scraptown | Delivered Scrap Shield to a Scientist 10196 | -8/Scraptown | Visited Botcube Research 10231 | -8/Scraptown | Visited Scrapoid Pod Storage 10261 | -8/Scraptown | Visited Junk Repository 10309 | -8/Scraptown | Visited Chapter 10 10360 | -8/Scraptown | Visited Derelict Rescue Squad 10456 | -8/Scraptown | Visited Cartography Club 10551 | -8/Scraptown | Learned location of Lower Caves (-7) 10551 | -8/Scraptown | Learned location of Zion (-7) 10551 | -8/Scraptown | Learned 8 Factory zone layouts 10551 | -8/Scraptown | Learned 4 Access zone layouts 10551 | -8/Scraptown | Learned 8 Lower Caves zone layouts 10551 | -8/Scraptown | Learned 20 Lower Caves zone layouts 10551 | -8/Scraptown | Learned 20 Upper Caves zone layouts 10551 | -8/Scraptown | Learned 8 Proximity Caves zone layouts 10551 | -8/Scraptown | Learned 12 Proximity Caves zone layouts 10551 | -8/Scraptown | Learned location of 2 exits from Research 10551 | -8/Scraptown | Learned location of 1 exit from Proximity Caves 10585 | -8/Scraptown | Found Deep Structural Scanner 10760 | -8/Scraptown | Build established: Mutant 11095 | -8/Scraptown | Entered Cyclist Reading Room 11171 | -8/Scraptown | Visited Shadow of the Wyrm 11249 | -8/Scraptown | Found Exp. Sensor Array 11324 | -8/Scraptown | Discovered new exit (range 12) 11356 | -8/Scraptown | Found Scrap Suit 11487 | -8/Scraptown | Found Botcube 11612 | -8/Scraptown | Found Scrapoid Pod 12167 | -8/Scraptown | Botcube activated 12191 | -8/Scraptown | Botcube completed mutation into legged form, armed with 1 cannon. 13022 | -8/Scraptown | Attached CPS modules to *Power Pants. 13546 | -8/Scraptown | Scrapoid Pod released 08S05-D (x5) 14035 | -8/Scraptown | Attacked by Scraptown defenders 14052 | -8/Scraptown | Core integrity fell below 20% 14072 | -8/Scraptown | Destroyed by YW-C85(E) with Overtuned Barrage Gun Last Messages --------------- 14044_ Slug penetrates Wall. 14044_ Machine disabled. 14045_ Acquired 17 matter. 14046_ W8-60G(j) heat short circuits Mak. Microdissipator Network. 14046_ Bolt penetrates Wall. 14046_ W8-60G(j) destroyed. 14047_ Slug penetrates 08S01-D. 14048_ 08S01-D suffers critical hit (Burn). 14048_ 08S01-D destroyed. 14049_ HJ-63L(h): "Scraptown was peaceful until you arrived!" 14049_ 08S05-D destroyed. 14049_ OS-73M(j) destroyed. 14049_ Machine disabled. 14049_ 55-NGV(j) destroyed. 14050_ Acquired 80 matter. 14051_ CPS Tube destroyed. 14051_ Penetrated by Slug. 14053_ Mapping Drone destroyed. 14054_ Penetrated by Bolt. 14063_ D9-D31(j): "Why does 0b10 have so many dangerous, evil bots?!" Map ----- +----------------------------------------------------+ | | | | | | | | | | | | | | | | | | | | | | | | | | | | | ##################?#?###???####################### | | ####################################"############# | | #######"""""""#################"" ############ | | #######" "#################"/< ==!########### | | """ "#################""&! [%###""""""""" | | ######" """ "#####"""""""######### !!###" " | | ######" """ "#####"" ""######### "##" | | ######" "#####"" ""######### ###" " | | ######""" """#####""" ""######### ###" """ " | | #### ###"" ""#######"#=!!###" " | | """" ###""" """######## ] ##"""""" "" | | """" @ | c=%! | | """ =! | | " EE | | " " ###### ########### ##########" | | " ###### ############ ###########" | | """"" #""""" """""####### ###########" | | ##### #" " " ### """"""""###" | | ####### #""" ""#" " " "### ### " ""###" | | ####### #""" "#" " " "#"" """ "###" | | ####### #""" "#""""" """""# """ " ""#### | | ?###### #"" "###### ######" * """"""""#### | | ???#### #" "#""""" """""#" % ##"""####### | | ####### #""" ""#" " " "#" "" !%=############ | | ####### #### ###" " " "#" %= #""""""""""" | | ####### #### " " "#""""" #""""""X"""" | | ####### ########""""" """""####### #"" " " " | | ""##### ############# ############% #"" " | | " #### ############ ############ #"" " | | #### #"" " | | ##### #"" " | | ##### ######################### #" | | ###### ######################### # | | ###### ########################## ########## # | | """""" """""""################# | | """""" " "## ""##""""" # | +----------------------------------------------------+ Best States ------------- Heat Dissipation 25 Energy Generation 15 Energy Capacity 200 Matter Stores 300 Matter Capacity 300 Sight Range 16 Terrain Scan Range 16 Terrain Scan Density 10 Evasion (%) 70 Recoil Reduction 2 Authchip Count 1 Item Schematics ----------------- Huge Storage Unit | -10/Materials | Hacked IN-MT5's Pitchfork "Insurrection" | -8/Scraptown | Archive Robot Schematics ------------------ None Fabricated ------------ Nothing Repaired ---------- Assault Rifle | 51% | -10/Materials Studied --------- None Alien Tech Used ----------------- None Achievements -------------- None Challenges ------------ None Game ------ Seed RocketChargeFilter Manual? 0 Play Time 01:21:24 Cumulative 1450.9 hours Start 2026.04.18 @ 15:29:04 End 2026.04.18 @ 18:16:42 Sessions 1 Manual Loads 0 Difficulty Rogue Special Mode None Game No. 473 Rogue 466 Adventurer 4 Explorer 3 Win Type - Total 43 Types 19/5/2/4/1/3/4/1/2/2 Lore% 97 Gallery% 95 Achievement% 88 Wizard Run 0 Options --------- Layout 0 ASCII 0 Keyboard 0 Movement Numpad Keybinds 0 Fullscreen 2 Font 18/Terminus Map View 76x50 Zoom Use 0% Tactical HUD 1 Map Filters NONE Filters NONE Steam 1 RUN: f5c73440-0aae-4eab-8bc0-44b1d826953b